[Event "Titled Tuesday Blitz August 09 Early 2022"]
[White "Delorme, Axel"]
[Black "Khabinets, Ivan"]
[WhiteFideId "632023"]
[BlackFideId "14115980"]
[WhiteElo "2474"]
[BlackElo "2114"]
[Result "1/2-1/2"]
[Round "04"]
[TimeControl "180+1"]
[Date "2022.08.09"]
[WhiteClock "0:00:08"]
[BlackClock "0:01:08"]

1. d4 {[%clk 0:03:00]}  d5 {[%clk 0:02:59]} 2. Nf3 {[%clk 0:03:00]}  e6 {[%clk 0:02:58]} 3. e3 {[%clk 0:03:00]}  Nf6 {[%clk 0:02:59]} 4. Bd3 {[%clk 0:03:00]}  c5 {[%clk 0:02:58]} 5. c3 {[%clk 0:03:01]}  Nc6 {[%clk 0:02:58]} 6. Nbd2 {[%clk 0:03:01]}  Bd6 {[%clk 0:02:58]} 7. O-O {[%clk 0:03:01]}  O-O {[%clk 0:02:59]} 8. dxc5 {[%clk 0:03:02]}  Bxc5 {[%clk 0:02:59]} 9. e4 {[%clk 0:03:02]}  e5 {[%clk 0:02:57]} 10. h3 {[%clk 0:03:00]}  h6 {[%clk 0:02:56]} 11. Qc2 {[%clk 0:02:57]}  Re8 {[%clk 0:02:55]} 12. b4 {[%clk 0:02:55]}  Bd6 {[%clk 0:02:52]} 13. a3 {[%clk 0:02:55]}  Be6 {[%clk 0:02:45]} 14. Bb2 {[%clk 0:02:55]}  Rc8 {[%clk 0:02:45]} 15. Qd1 {[%clk 0:02:46]}  dxe4 {[%clk 0:02:39]} 16. Nxe4 {[%clk 0:02:47]}  Nxe4 {[%clk 0:02:40]} 17. Bxe4 {[%clk 0:02:47]}  f5 {[%clk 0:02:40]} 18. Bd5 {[%clk 0:02:44]}  e4 {[%clk 0:02:40]} 19. Bxe6+ {[%clk 0:02:30]}  Rxe6 {[%clk 0:02:39]} 20. Nd4 {[%clk 0:02:31]}  Nxd4 {[%clk 0:02:33]} 21. Qxd4 {[%clk 0:02:31]}  Qe7 {[%clk 0:02:32]} 22. c4 {[%clk 0:01:41]}  Be5 {[%clk 0:02:28]} 23. Qd2 {[%clk 0:01:34]}  Rd6 {[%clk 0:02:19]} 24. Qc2 {[%clk 0:01:27]}  Bxb2 {[%clk 0:02:18]} 25. Qxb2 {[%clk 0:01:28]}  Rxc4 {[%clk 0:02:18]} 26. Rad1 {[%clk 0:01:23]}  Kh7 {[%clk 0:02:10]} 27. Qe2 {[%clk 0:01:18]}  Rcd4 {[%clk 0:02:08]} 28. Rxd4 {[%clk 0:01:17]}  Rxd4 {[%clk 0:02:09]} 29. Qb5 {[%clk 0:01:16]}  Qd7 {[%clk 0:02:05]} 30. Qe5 {[%clk 0:01:07]}  Rd5 {[%clk 0:02:00]} 31. Qb8 {[%clk 0:01:07]}  a6 {[%clk 0:01:59]} 32. Rc1 {[%clk 0:00:55]}  Rd2 {[%clk 0:01:41]} 33. Qg3 {[%clk 0:00:28]}  Qd6 {[%clk 0:01:34]} 34. Qxd6 {[%clk 0:00:28]}  Rxd6 {[%clk 0:01:35]} 35. Rc7 {[%clk 0:00:21]}  Rd3 {[%clk 0:01:34]} 36. Rxb7 {[%clk 0:00:20]}  Rxa3 {[%clk 0:01:35]} 37. b5 {[%clk 0:00:18]}  a5 {[%clk 0:01:35]} 38. g3 {[%clk 0:00:13]}  Rb3 {[%clk 0:01:35]} 39. b6 {[%clk 0:00:13]}  Kg6 {[%clk 0:01:35]} 40. Ra7 {[%clk 0:00:10]}  Rxb6 {[%clk 0:01:34]} 41. Rxa5 {[%clk 0:00:10]}  Kf6 {[%clk 0:01:35]} 42. h4 {[%clk 0:00:09]}  Rc6 {[%clk 0:01:31]} 43. Rb5 {[%clk 0:00:08]}  Rc1+ {[%clk 0:01:30]} 44. Kg2 {[%clk 0:00:08]}  Rc2 {[%clk 0:01:31]} 45. Kf1 {[%clk 0:00:08]}  Kg6 {[%clk 0:01:28]} 46. Kg1 {[%clk 0:00:07]}  Ra2 {[%clk 0:01:24]} 47. Rc5 {[%clk 0:00:07]}  Kf6 {[%clk 0:01:24]} 48. Rb5 {[%clk 0:00:08]}  Ke6 {[%clk 0:01:20]} 49. Rc5 {[%clk 0:00:08]}  Rd2 {[%clk 0:01:21]} 50. Rb5 {[%clk 0:00:08]}  Rd5 {[%clk 0:01:18]} 51. Rb7 {[%clk 0:00:07]}  Rd7 {[%clk 0:01:18]} 52. Rb5 {[%clk 0:00:07]}  g6 {[%clk 0:01:15]} 53. Kg2 {[%clk 0:00:06]}  Rd2 {[%clk 0:01:15]} 54. Kg1 {[%clk 0:00:06]}  Kf6 {[%clk 0:01:15]} 55. Rb6+ {[%clk 0:00:06]}  Kf7 {[%clk 0:01:14]} 56. Ra6 {[%clk 0:00:07]}  Rb2 {[%clk 0:01:11]} 57. h5 {[%clk 0:00:07]}  Rb1+ {[%clk 0:01:05]} 58. Kg2 {[%clk 0:00:07]}  gxh5 {[%clk 0:01:01]} 59. Rxh6 {[%clk 0:00:08]}  Rb2 {[%clk 0:01:01]} 60. Kg1 {[%clk 0:00:07]}  Kg7 {[%clk 0:01:01]} 61. Rxh5 {[%clk 0:00:07]}  Kg6 {[%clk 0:01:02]} 62. Rh8 {[%clk 0:00:07]}  Kg5 {[%clk 0:01:03]} 63. Rg8+ {[%clk 0:00:07]}  Kh5 {[%clk 0:01:03]} 64. Kf1 {[%clk 0:00:05]}  Ra2 {[%clk 0:01:03]} 65. Kg1 {[%clk 0:00:05]}  Ra1+ {[%clk 0:01:03]} 66. Kg2 {[%clk 0:00:05]}  Rb1 {[%clk 0:01:04]} 67. Rf8 {[%clk 0:00:04]}  Kg5 {[%clk 0:01:02]} 68. Rg8+ {[%clk 0:00:04]}  Kf6 {[%clk 0:01:03]} 69. Rf8+ {[%clk 0:00:05]}  Kg6 {[%clk 0:01:04]} 70. Rg8+ {[%clk 0:00:05]}  Kf7 {[%clk 0:01:04]} 71. Rc8 {[%clk 0:00:06]}  Rb2 {[%clk 0:01:05]} 72. Rc6 {[%clk 0:00:06]}  e3 {[%clk 0:01:03]} 73. Kf3 {[%clk 0:00:03]}  exf2 {[%clk 0:00:59]} 74. Kg2 {[%clk 0:00:04]}  Ke7 {[%clk 0:00:59]} 75. Rc4 {[%clk 0:00:04]}  Ke6 {[%clk 0:00:59]} 76. Rf4 {[%clk 0:00:04]}  f1=Q+ {[%clk 0:00:58]} 77. Kxf1 {[%clk 0:00:04]}  Ke5 {[%clk 0:00:59]} 78. Rh4 {[%clk 0:00:04]}  Kf6 {[%clk 0:00:59]} 79. Kg1 {[%clk 0:00:04]}  Kg5 {[%clk 0:00:59]} 80. Rf4 {[%clk 0:00:04]}  Ra2 {[%clk 0:00:58]} 81. Rf2 {[%clk 0:00:04]}  Ra3 {[%clk 0:00:57]} 82. Kg2 {[%clk 0:00:04]}  Ra4 {[%clk 0:00:57]} 83. Rf1 {[%clk 0:00:03]}  Kg4 {[%clk 0:00:58]} 84. Rf4+ {[%clk 0:00:03]}  Rxf4 {[%clk 0:00:57]} 85. gxf4 {[%clk 0:00:04]}  Kxf4 {[%clk 0:00:58]} 86. Kf2 {[%clk 0:00:04]}  Ke4 {[%clk 0:00:58]} 87. Ke2 {[%clk 0:00:04]}  Ke5 {[%clk 0:00:59]} 88. Ke3 {[%clk 0:00:04]}  Ke6 {[%clk 0:00:59]} 89. Kf4 {[%clk 0:00:04]}  Kf6 {[%clk 0:01:00]} 90. Kf3 {[%clk 0:00:04]}  Kg6 {[%clk 0:01:01]} 91. Kf4 {[%clk 0:00:05]}  Kf6 {[%clk 0:01:02]} 92. Kf3 {[%clk 0:00:05]}  Kg5 {[%clk 0:01:03]} 93. Kg3 {[%clk 0:00:05]}  f4+ {[%clk 0:01:03]} 94. Kf3 {[%clk 0:00:06]}  Kf5 {[%clk 0:01:04]} 95. Kf2 {[%clk 0:00:06]}  Ke5 {[%clk 0:01:05]} 96. Kf3 {[%clk 0:00:07]}  Kf5 {[%clk 0:01:06]} 97. Kf2 {[%clk 0:00:07]}  Ke4 {[%clk 0:01:06]} 98. Ke2 {[%clk 0:00:07]}  Ke5 {[%clk 0:01:07]} 99. Kf3 {[%clk 0:00:08]}  Kf5 {[%clk 0:01:08]} 1/2-1/2


[Site "https://www.chess.com"]

[Event "Titled Tuesday Blitz August 09 Early 2022"]
[White "Demchenko, Anton"]
[Black "Hua, Lefong"]
[WhiteFideId "4160258"]
[BlackFideId "2602253"]
[WhiteElo "2539"]
[BlackElo "2602"]
[Result "0-1"]
[Round "04"]
[TimeControl "180+1"]
[Date "2022.08.09"]
[WhiteClock "0:00:03"]
[BlackClock "0:00:22"]

1. e4 {[%clk 0:03:00]}  c5 {[%clk 0:02:59]} 2. Nf3 {[%clk 0:03:01]}  g6 {[%clk 0:03:00]} 3. c3 {[%clk 0:02:52]}  Nc6 {[%clk 0:02:59]} 4. Bc4 {[%clk 0:02:52]}  e6 {[%clk 0:02:45]} 5. O-O {[%clk 0:02:51]}  Bg7 {[%clk 0:02:42]} 6. d4 {[%clk 0:02:51]}  cxd4 {[%clk 0:02:42]} 7. Nxd4 {[%clk 0:02:52]}  d5 {[%clk 0:02:37]} 8. exd5 {[%clk 0:02:50]}  exd5 {[%clk 0:02:38]} 9. Re1+ {[%clk 0:02:16]}  Nge7 {[%clk 0:02:37]} 10. Bg5 {[%clk 0:02:16]}  dxc4 {[%clk 0:02:20]} 11. Nd2 {[%clk 0:01:25]}  f6 {[%clk 0:02:11]} 12. Nxc6 {[%clk 0:01:25]}  bxc6 {[%clk 0:02:09]} 13. Be3 {[%clk 0:01:26]}  O-O {[%clk 0:02:03]} 14. Bc5 {[%clk 0:01:25]}  Rf7 {[%clk 0:02:02]} 15. Qe2 {[%clk 0:01:20]}  Bf8 {[%clk 0:01:56]} 16. Nxc4 {[%clk 0:01:14]}  Ba6 {[%clk 0:01:42]} 17. Rad1 {[%clk 0:01:01]}  Qc7 {[%clk 0:01:32]} 18. Qe6 {[%clk 0:01:00]}  Bxc4 {[%clk 0:01:27]} 19. Qxc4 {[%clk 0:01:00]}  Nd5 {[%clk 0:01:26]} 20. Bxf8 {[%clk 0:01:01]}  Raxf8 {[%clk 0:01:26]} 21. Re6 {[%clk 0:01:01]}  Nb6 {[%clk 0:01:14]} 22. Qxc6 {[%clk 0:01:00]}  Qxc6 {[%clk 0:01:14]} 23. Rxc6 {[%clk 0:01:01]}  Re8 {[%clk 0:01:11]} 24. Kf1 {[%clk 0:00:59]}  Kg7 {[%clk 0:01:11]} 25. c4 {[%clk 0:00:55]}  Rfe7 {[%clk 0:01:10]} 26. c5 {[%clk 0:00:55]}  Nc4 {[%clk 0:01:10]} 27. g3 {[%clk 0:00:38]}  Nxb2 {[%clk 0:01:08]} 28. Rd4 {[%clk 0:00:39]}  Re1+ {[%clk 0:01:00]} 29. Kg2 {[%clk 0:00:39]}  R8e7 {[%clk 0:01:00]} 30. h4 {[%clk 0:00:34]}  R1e2 {[%clk 0:00:56]} 31. a4 {[%clk 0:00:30]}  a5 {[%clk 0:00:47]} 32. Ra6 {[%clk 0:00:28]}  R2e4 {[%clk 0:00:39]} 33. Rxe4 {[%clk 0:00:28]}  Rxe4 {[%clk 0:00:39]} 34. Ra7+ {[%clk 0:00:28]}  Kh6 {[%clk 0:00:37]} 35. Rxa5 {[%clk 0:00:24]}  Rxa4 {[%clk 0:00:36]} 36. Rxa4 {[%clk 0:00:12]}  Nxa4 {[%clk 0:00:36]} 37. c6 {[%clk 0:00:13]}  Nb6 {[%clk 0:00:34]} 38. Kf3 {[%clk 0:00:14]}  Kg7 {[%clk 0:00:34]} 39. Ke4 {[%clk 0:00:14]}  Kf7 {[%clk 0:00:35]} 40. h5 {[%clk 0:00:15]}  Ke6 {[%clk 0:00:32]} 41. hxg6 {[%clk 0:00:13]}  hxg6 {[%clk 0:00:33]} 42. g4 {[%clk 0:00:11]}  Kd6 {[%clk 0:00:29]} 43. g5 {[%clk 0:00:11]}  f5+ {[%clk 0:00:28]} 44. Kd4 {[%clk 0:00:12]}  Nd5 {[%clk 0:00:26]} 45. f3 {[%clk 0:00:09]}  Nf4 {[%clk 0:00:25]} 46. Kc4 {[%clk 0:00:01]}  Kxc6 {[%clk 0:00:22]} 47. Kd4 {[%clk 0:00:01]}  Kd6 {[%clk 0:00:23]} 48. Ke3 {[%clk 0:00:02]}  Ke5 {[%clk 0:00:23]} 49. Kf2 {[%clk 0:00:02]}  Ne6 {[%clk 0:00:23]} 50. Kg3 {[%clk 0:00:03]}  Nxg5 {[%clk 0:00:22]} 0-1


[Site "https://www.chess.com"]

[Event "Titled Tuesday Blitz August 09 Early 2022"]
[White "Ernst, Sipke"]
[Black "Nasir, Zehn"]
[WhiteFideId "1004689"]
[BlackFideId "2613239"]
[WhiteElo "2436"]
[BlackElo "1993"]
[Result "1-0"]
[Round "04"]
[TimeControl "180+1"]
[Date "2022.08.09"]
[WhiteClock "0:00:47"]
[BlackClock "0:00:04"]

1. d4 {[%clk 0:03:00]}  Nf6 {[%clk 0:02:54]} 2. c4 {[%clk 0:03:00]}  c5 {[%clk 0:02:53]} 3. d5 {[%clk 0:02:59]}  e6 {[%clk 0:02:53]} 4. Nc3 {[%clk 0:02:58]}  exd5 {[%clk 0:02:54]} 5. cxd5 {[%clk 0:02:58]}  d6 {[%clk 0:02:54]} 6. e4 {[%clk 0:02:58]}  g6 {[%clk 0:02:53]} 7. f4 {[%clk 0:02:58]}  Bg7 {[%clk 0:02:52]} 8. Bb5+ {[%clk 0:02:58]}  Nfd7 {[%clk 0:02:53]} 9. Bd3 {[%clk 0:02:58]}  O-O {[%clk 0:02:52]} 10. Nf3 {[%clk 0:02:58]}  Re8 {[%clk 0:02:50]} 11. O-O {[%clk 0:02:53]}  a6 {[%clk 0:02:50]} 12. a4 {[%clk 0:02:51]}  Nf6 {[%clk 0:02:40]} 13. h3 {[%clk 0:02:51]}  Nbd7 {[%clk 0:02:36]} 14. Re1 {[%clk 0:02:43]}  Qc7 {[%clk 0:02:30]} 15. Be3 {[%clk 0:02:31]}  Nh5 {[%clk 0:02:10]} 16. Rc1 {[%clk 0:02:20]}  Bh6 {[%clk 0:01:39]} 17. Qd2 {[%clk 0:02:07]}  c4 {[%clk 0:01:13]} 18. Bb1 {[%clk 0:02:00]}  Nc5 {[%clk 0:01:12]} 19. g4 {[%clk 0:01:40]}  Ng3 {[%clk 0:01:06]} 20. Bxc5 {[%clk 0:01:30]}  Qxc5+ {[%clk 0:01:03]} 21. Kg2 {[%clk 0:01:30]}  f5 {[%clk 0:00:39]} 22. exf5 {[%clk 0:01:23]}  Bxf5 {[%clk 0:00:25]} 23. gxf5 {[%clk 0:01:10]}  Nxf5 {[%clk 0:00:21]} 24. Bxf5 {[%clk 0:01:09]}  gxf5 {[%clk 0:00:19]} 25. Ng5 {[%clk 0:01:04]}  b5 {[%clk 0:00:14]} 26. axb5 {[%clk 0:01:02]}  axb5 {[%clk 0:00:15]} 27. Ne6 {[%clk 0:01:00]}  Qb4 {[%clk 0:00:14]} 28. Kh2 {[%clk 0:00:56]}  Kh8 {[%clk 0:00:12]} 29. Qd4+ {[%clk 0:00:55]}  Kg8 {[%clk 0:00:10]} 30. Qf6 {[%clk 0:00:54]}  Qxb2+ {[%clk 0:00:09]} 31. Re2 {[%clk 0:00:53]}  Bxf4+ {[%clk 0:00:07]} 32. Kg2 {[%clk 0:00:49]}  Be5 {[%clk 0:00:05]} 33. Qg5+ {[%clk 0:00:47]}  Kf7 {[%clk 0:00:04]} 1-0


[Site "https://www.chess.com"]

[Event "Titled Tuesday Blitz August 09 Early 2022"]
[White "Eynullayev, Altay"]
[Black "Silvestre, Christian"]
[WhiteFideId "13413562"]
[BlackFideId "30956269"]
[WhiteElo "2079"]
[BlackElo "2301"]
[Result "1-0"]
[Round "04"]
[TimeControl "180+1"]
[Date "2022.08.09"]
[WhiteClock "0:00:18"]
[BlackClock "0:00:15"]

1. e4 {[%clk 0:03:00]}  e5 {[%clk 0:02:34]} 2. Nf3 {[%clk 0:03:00]}  Nc6 {[%clk 0:02:33]} 3. Bb5 {[%clk 0:03:00]}  Nf6 {[%clk 0:02:33]} 4. O-O {[%clk 0:03:00]}  Nxe4 {[%clk 0:02:32]} 5. Re1 {[%clk 0:03:00]}  Nd6 {[%clk 0:02:32]} 6. Nxe5 {[%clk 0:03:01]}  Nxe5 {[%clk 0:02:29]} 7. Rxe5+ {[%clk 0:03:01]}  Be7 {[%clk 0:02:29]} 8. Bf1 {[%clk 0:03:01]}  O-O {[%clk 0:02:29]} 9. d4 {[%clk 0:03:01]}  Bf6 {[%clk 0:02:29]} 10. Re1 {[%clk 0:03:02]}  Re8 {[%clk 0:02:27]} 11. d5 {[%clk 0:03:02]}  Rxe1 {[%clk 0:02:26]} 12. Qxe1 {[%clk 0:03:02]}  b6 {[%clk 0:02:15]} 13. Nc3 {[%clk 0:02:49]}  Bb7 {[%clk 0:02:01]} 14. Bf4 {[%clk 0:02:40]}  Nf5 {[%clk 0:02:00]} 15. Rd1 {[%clk 0:02:37]}  d6 {[%clk 0:01:59]} 16. Bd3 {[%clk 0:02:33]}  Ne7 {[%clk 0:01:47]} 17. Bc1 {[%clk 0:01:53]}  Ng6 {[%clk 0:01:45]} 18. Ne4 {[%clk 0:01:52]}  Be5 {[%clk 0:01:26]} 19. c4 {[%clk 0:01:37]}  Qh4 {[%clk 0:01:17]} 20. g3 {[%clk 0:01:36]}  Qe7 {[%clk 0:01:05]} 21. Bg5 {[%clk 0:01:34]}  f6 {[%clk 0:01:01]} 22. Bc1 {[%clk 0:01:32]}  f5 {[%clk 0:00:51]} 23. Nd2 {[%clk 0:01:31]}  Qf6 {[%clk 0:00:35]} 24. Nf3 {[%clk 0:01:18]}  Re8 {[%clk 0:00:28]} 25. Nxe5 {[%clk 0:01:13]}  dxe5 {[%clk 0:00:21]} 26. Bf1 {[%clk 0:01:08]}  e4 {[%clk 0:00:20]} 27. Qe3 {[%clk 0:00:56]}  Ne5 {[%clk 0:00:18]} 28. Be2 {[%clk 0:00:54]}  g5 {[%clk 0:00:16]} 29. Qxg5+ {[%clk 0:00:51]}  Qxg5 {[%clk 0:00:17]} 30. Bxg5 {[%clk 0:00:51]}  Kf7 {[%clk 0:00:17]} 31. Bh5+ {[%clk 0:00:50]}  Ng6 {[%clk 0:00:16]} 32. Bf4 {[%clk 0:00:50]}  Re7 {[%clk 0:00:15]} 33. d6 {[%clk 0:00:50]}  cxd6 {[%clk 0:00:16]} 34. Rxd6 {[%clk 0:00:50]}  Rc7 {[%clk 0:00:15]} 35. Rd4 {[%clk 0:00:36]}  Re7 {[%clk 0:00:12]} 36. Bg5 {[%clk 0:00:37]}  Rc7 {[%clk 0:00:10]} 37. Bd8 {[%clk 0:00:35]}  Rc8 {[%clk 0:00:08]} 38. Rd7+ {[%clk 0:00:35]}  Ke6 {[%clk 0:00:08]} 39. Rxb7 {[%clk 0:00:34]}  Rxd8 {[%clk 0:00:09]} 40. Bxg6 {[%clk 0:00:28]}  hxg6 {[%clk 0:00:10]} 41. Rxa7 {[%clk 0:00:29]}  Rd1+ {[%clk 0:00:10]} 42. Kg2 {[%clk 0:00:28]}  Rd2 {[%clk 0:00:11]} 43. Kf1 {[%clk 0:00:24]}  Rxb2 {[%clk 0:00:11]} 44. Ra6 {[%clk 0:00:24]}  Ke5 {[%clk 0:00:09]} 45. a4 {[%clk 0:00:19]}  g5 {[%clk 0:00:09]} 46. a5 {[%clk 0:00:18]}  bxa5 {[%clk 0:00:09]} 47. Rxa5+ {[%clk 0:00:19]}  Ke6 {[%clk 0:00:08]} 48. Rc5 {[%clk 0:00:18]}  Rc2 {[%clk 0:00:08]} 49. Rc6+ {[%clk 0:00:18]}  Ke5 {[%clk 0:00:08]} 50. Rc5+ {[%clk 0:00:17]}  Ke6 {[%clk 0:00:08]} 51. Rc8 {[%clk 0:00:18]}  f4 {[%clk 0:00:07]} 52. gxf4 {[%clk 0:00:18]}  gxf4 {[%clk 0:00:08]} 53. h4 {[%clk 0:00:18]}  f3 {[%clk 0:00:07]} 54. Ke1 {[%clk 0:00:18]}  Ke5 {[%clk 0:00:06]} 55. h5 {[%clk 0:00:16]}  Re2+ {[%clk 0:00:06]} 56. Kf1 {[%clk 0:00:16]}  Rc2 {[%clk 0:00:06]} 57. Kg1 {[%clk 0:00:17]}  Kf4 {[%clk 0:00:04]} 58. Rf8+ {[%clk 0:00:16]}  Kg5 {[%clk 0:00:04]} 59. Re8 {[%clk 0:00:15]}  Rxc4 {[%clk 0:00:02]} 60. Re5+ {[%clk 0:00:15]}  Kg4 {[%clk 0:00:02]} 61. h6 {[%clk 0:00:14]}  Kf4 {[%clk 0:00:02]} 62. h7 {[%clk 0:00:13]}  Rc8 {[%clk 0:00:02]} 63. Rh5 {[%clk 0:00:13]}  Rh8 {[%clk 0:00:01]} 64. Kh2 {[%clk 0:00:13]}  e3 {[%clk 0:00:02]} 65. Rh4+ {[%clk 0:00:13]}  Ke5 {[%clk 0:00:02]} 66. fxe3 {[%clk 0:00:12]}  Kf5 {[%clk 0:00:01]} 67. Kg3 {[%clk 0:00:12]}  Kg6 {[%clk 0:00:02]} 68. Kxf3 {[%clk 0:00:12]}  Rxh7 {[%clk 0:00:03]} 69. Rxh7 {[%clk 0:00:12]}  Kxh7 {[%clk 0:00:04]} 70. Ke4 {[%clk 0:00:13]}  Kg7 {[%clk 0:00:05]} 71. Kd5 {[%clk 0:00:13]}  Kf7 {[%clk 0:00:06]} 72. Kd6 {[%clk 0:00:13]}  Ke8 {[%clk 0:00:07]} 73. e4 {[%clk 0:00:12]}  Kd8 {[%clk 0:00:08]} 74. e5 {[%clk 0:00:12]}  Ke8 {[%clk 0:00:08]} 75. Ke6 {[%clk 0:00:12]}  Kd8 {[%clk 0:00:09]} 76. Kf7 {[%clk 0:00:13]}  Kd7 {[%clk 0:00:09]} 77. e6+ {[%clk 0:00:13]}  Kd6 {[%clk 0:00:10]} 78. e7 {[%clk 0:00:14]}  Kd5 {[%clk 0:00:11]} 79. e8=Q {[%clk 0:00:15]}  Kd4 {[%clk 0:00:12]} 80. Qd8+ {[%clk 0:00:15]}  Ke4 {[%clk 0:00:12]} 81. Ke7 {[%clk 0:00:16]}  Kf4 {[%clk 0:00:13]} 82. Ke6 {[%clk 0:00:16]}  Ke4 {[%clk 0:00:13]} 83. Qd5+ {[%clk 0:00:17]}  Kf4 {[%clk 0:00:14]} 84. Qe5+ {[%clk 0:00:16]}  Kf3 {[%clk 0:00:14]} 85. Kf5 {[%clk 0:00:16]}  Kg2 {[%clk 0:00:14]} 86. Qe3 {[%clk 0:00:16]}  Kh2 {[%clk 0:00:14]} 87. Qf3 {[%clk 0:00:16]}  Kg1 {[%clk 0:00:13]} 88. Qe2 {[%clk 0:00:16]}  Kh1 {[%clk 0:00:14]} 89. Kg4 {[%clk 0:00:17]}  Kg1 {[%clk 0:00:14]} 90. Kg3 {[%clk 0:00:18]}  Kh1 {[%clk 0:00:15]} 91. Qg2# {[%clk 0:00:18]} 1-0


[Site "https://www.chess.com"]

[Event "Titled Tuesday Blitz August 09 Early 2022"]
[White "Goldin, Roman"]
[Black "Lehtosaari, Mauri"]
[WhiteFideId "2803860"]
[BlackFideId "501999"]
[WhiteElo "2312"]
[BlackElo "2507"]
[Result "1-0"]
[Round "04"]
[TimeControl "180+1"]
[Date "2022.08.09"]
[WhiteClock "0:00:06"]
[BlackClock "0:00:02"]

1. e4 {[%clk 0:02:58]}  d5 {[%clk 0:02:57]} 2. Nc3 {[%clk 0:02:56]}  c6 {[%clk 0:02:50]} 3. d4 {[%clk 0:02:53]}  dxe4 {[%clk 0:02:48]} 4. Nxe4 {[%clk 0:02:54]}  h6 {[%clk 0:02:48]} 5. Bc4 {[%clk 0:02:52]}  Bf5 {[%clk 0:02:44]} 6. Ng3 {[%clk 0:02:33]}  Bh7 {[%clk 0:02:38]} 7. Nf3 {[%clk 0:02:12]}  e6 {[%clk 0:02:34]} 8. O-O {[%clk 0:02:05]}  Nf6 {[%clk 0:02:33]} 9. Re1 {[%clk 0:02:03]}  Be7 {[%clk 0:02:32]} 10. Ne5 {[%clk 0:02:00]}  O-O {[%clk 0:02:28]} 11. Qe2 {[%clk 0:01:58]}  Nd5 {[%clk 0:02:00]} 12. c3 {[%clk 0:01:41]}  Nd7 {[%clk 0:01:56]} 13. f4 {[%clk 0:01:38]}  Nxe5 {[%clk 0:01:47]} 14. dxe5 {[%clk 0:01:32]}  b5 {[%clk 0:01:37]} 15. Bb3 {[%clk 0:01:31]}  a5 {[%clk 0:01:36]} 16. a4 {[%clk 0:01:30]}  Qb6+ {[%clk 0:01:02]} 17. Kh1 {[%clk 0:01:27]}  Bh4 {[%clk 0:01:03]} 18. Bxd5 {[%clk 0:01:17]}  exd5 {[%clk 0:00:45]} 19. Be3 {[%clk 0:01:12]}  Qb7 {[%clk 0:00:39]} 20. Bc5 {[%clk 0:01:08]}  Rfe8 {[%clk 0:00:38]} 21. Nh5 {[%clk 0:00:57]}  Bg6 {[%clk 0:00:29]} 22. g3 {[%clk 0:00:47]}  Be7 {[%clk 0:00:24]} 23. Bxe7 {[%clk 0:00:38]}  Rxe7 {[%clk 0:00:25]} 24. Qg4 {[%clk 0:00:31]}  Qd7 {[%clk 0:00:15]} 25. Qh4 {[%clk 0:00:17]}  Be4+ {[%clk 0:00:08]} 26. Kg1 {[%clk 0:00:15]}  bxa4 {[%clk 0:00:08]} 27. Rxa4 {[%clk 0:00:11]}  Rb8 {[%clk 0:00:07]} 28. Re2 {[%clk 0:00:09]}  c5 {[%clk 0:00:05]} 29. Rxa5 {[%clk 0:00:09]}  Qd8 {[%clk 0:00:02]} 30. Rxc5 {[%clk 0:00:08]}  Reb7 {[%clk 0:00:01]} 31. b4 {[%clk 0:00:07]}  Qxh4 {[%clk 0:00:01]} 32. gxh4 {[%clk 0:00:07]}  Ra8 {[%clk 0:00:02]} 33. Kf2 {[%clk 0:00:06]}  Ra1 {[%clk 0:00:02]} 34. Ng3 {[%clk 0:00:06]} 1-0


[Site "https://www.chess.com"]

[Event "Titled Tuesday Blitz August 09 Early 2022"]
[White "Gombocz, Ferenc Jr."]
[Black "Martin Barcelo, Carles"]
[WhiteFideId "775029"]
[BlackFideId "24561444"]
[WhiteElo "1913"]
[BlackElo "1922"]
[Result "0-1"]
[Round "04"]
[TimeControl "180+1"]
[Date "2022.08.09"]
[WhiteClock "0:01:27"]
[BlackClock "0:01:06"]

1. c4 {[%clk 0:03:00]}  e6 {[%clk 0:02:55]} 2. g3 {[%clk 0:03:00]}  d5 {[%clk 0:02:54]} 3. Bg2 {[%clk 0:03:01]}  Nf6 {[%clk 0:02:52]} 4. Nf3 {[%clk 0:03:01]}  b6 {[%clk 0:02:51]} 5. O-O {[%clk 0:02:58]}  Bb7 {[%clk 0:02:51]} 6. b3 {[%clk 0:02:57]}  Be7 {[%clk 0:02:51]} 7. Bb2 {[%clk 0:02:56]}  O-O {[%clk 0:02:51]} 8. d4 {[%clk 0:02:57]}  Nbd7 {[%clk 0:02:50]} 9. Nc3 {[%clk 0:02:57]}  Ne4 {[%clk 0:02:42]} 10. Nxe4 {[%clk 0:02:54]}  dxe4 {[%clk 0:02:43]} 11. Ne5 {[%clk 0:02:54]}  f5 {[%clk 0:02:39]} 12. f4 {[%clk 0:02:41]}  Nxe5 {[%clk 0:02:23]} 13. dxe5 {[%clk 0:02:25]}  Qxd1 {[%clk 0:02:21]} 14. Rfxd1 {[%clk 0:02:23]}  Rfd8 {[%clk 0:02:22]} 15. e3 {[%clk 0:02:18]}  a5 {[%clk 0:02:12]} 16. a4 {[%clk 0:02:13]}  Bb4 {[%clk 0:02:11]} 17. Kf2 {[%clk 0:02:11]}  Kf7 {[%clk 0:02:06]} 18. Ke2 {[%clk 0:02:11]}  h6 {[%clk 0:02:07]} 19. Rxd8 {[%clk 0:02:10]}  Rxd8 {[%clk 0:02:06]} 20. Rd1 {[%clk 0:02:11]}  Rd3 {[%clk 0:02:02]} 21. Bf1 {[%clk 0:02:04]}  Rxb3 {[%clk 0:01:33]} 22. Bc1 {[%clk 0:02:01]}  Ke7 {[%clk 0:01:25]} 23. Kf2 {[%clk 0:01:50]}  Rc3 {[%clk 0:01:18]} 24. Be2 {[%clk 0:01:42]}  Ba6 {[%clk 0:01:14]} 25. Bd2 {[%clk 0:01:30]}  Rc2 {[%clk 0:01:13]} 26. Bxb4+ {[%clk 0:01:29]}  axb4 {[%clk 0:01:13]} 27. Kf1 {[%clk 0:01:30]}  Bxc4 {[%clk 0:01:07]} 28. Bxc4 {[%clk 0:01:29]}  Rxc4 {[%clk 0:01:08]} 29. Rb1 {[%clk 0:01:28]}  c5 {[%clk 0:01:07]} 30. Rb2 {[%clk 0:01:27]}  Rc1+ {[%clk 0:01:07]} 31. Ke2 {[%clk 0:01:27]}  Rh1 {[%clk 0:01:06]} 0-1


[Site "https://www.chess.com"]